fUSD/lending_fUSD_20260405
["ID","MTS","AMOUNT","RATE_DAILY","PERIOD"]
[419797246,1775385035928,-1235.37,0.00013698,2]
[419797247,1775385035938,-500.0,0.00013698,2]
[419797248,1775385035948,-500.0,0.00013698,2]
[419797249,1775385035957,-1233.74,0.00013698,2]
[419797250,1775385035966,-1233.74,0.00013698,2]
[419797251,1775385035976,-1233.74,0.00013698,2]
[419797252,1775385035985,-1233.74,0.00013698,2]
[419797253,1775385035995,-1233.74,0.00013698,2]
[419797254,1775385036004,-1233.74,0.00013698,2]
[419797255,1775385036014,-500.0,0.00013698,2]
[419797256,1775385036023,-500.0,0.00013698,2]
[419797257,1775385036032,-500.0,0.00013698,2]
[419797258,1775385036042,-500.0,0.00013698,2]
[419797259,1775385036051,-500.0,0.00013698,2]
[419797260,1775385036061,-500.0,0.00013698,2]
[419797261,1775385036070,-500.0,0.00013698,2]
[419797262,1775385036081,-500.0,0.00013698,2]
[419797263,1775385036091,-500.0,0.00013698,2]
[419797264,1775385036100,-500.0,0.00013698,2]
[419797265,1775385036110,-500.0,0.00013698,2]
[419797266,1775385036121,-500.0,0.00013698,2]
[419797267,1775385036131,-481.06713155,0.00013698,2]
[419797268,1775385036141,-500.0,0.00013698,2]
[419797269,1775385036151,-500.0,0.00013698,2]
[419797270,1775385036161,-369.93,0.00013698,2]
[419797271,1775385036171,-500.0,0.00013698,2]
[419797272,1775385036181,-500.0,0.00013698,2]
[419797273,1775385036191,-500.0,0.00013698,2]
[419797274,1775385036200,-500.0,0.00013698,2]
[419797275,1775385036213,-500.0,0.00013698,2]
[419797276,1775385036223,-500.0,0.00013698,2]
[419797277,1775385036232,-5957.33,0.00013699,2]
[419797278,1775385036241,-363.95598203,0.00013699,2]
[419797279,1775385036251,-229.70094032,0.00013699,2]
[419797280,1775385036261,-500.0,0.00013699,2]
[419797281,1775385036271,-500.0,0.00013699,2]
[419797282,1775385036281,-500.0,0.00013699,2]
[419797283,1775385036291,-500.13152132,0.00013699,2]
[419797284,1775385036301,-500.0,0.00013699,2]
[419797285,1775385036310,-500.0,0.00013699,2]
[419797286,1775385036320,-772.1,0.000137,2]
[419797287,1775385036331,-772.1,0.000137,2]
[419797288,1775385036341,-772.1,0.000137,2]
[419797289,1775385036351,-599.60298507,0.00013734,2]
[419797290,1775385036360,-747.8093786,0.00013734,2]
[419797291,1775385036370,-200.0,0.00013735,2]
[419797292,1775385036379,-1712.93078312,0.00013735,2]
[419797293,1775385036388,-6453.0,0.00013805,2]
[419797294,1775385036398,-3000.0,0.00013808,2]
[419797295,1775385036407,-1600.0,0.00013808,2]
[419797296,1775385036416,-2129.0,0.00013809,2]
[419797297,1775385036426,-1527.07242696,0.00014215,2]
[419797298,1775385036436,-1000.0,0.00014247,2]
[419797299,1775385036446,-262.32183267,0.00014247,2]
[419797300,1775385036455,-1000.0,0.00014247,2]
[419797301,1775385036464,-1000.0,0.00014247,2]
[419797302,1775385036473,-1000.0,0.00014247,2]
[419797303,1775385036482,-200.0,0.00014283,2]
[419797304,1775385036491,-1776.30922209,0.00014283,2]
[419797305,1775385036500,-2000.0,0.00014332,2]
[419797306,1775385036510,-200.0,0.00014332,2]
[419797307,1775385036519,-200.0,0.00014332,2]
[419797308,1775385036529,-5957.33,0.00014384,2]
[419797309,1775385036539,-150.14541725,0.000144,2]
[419797310,1775385036548,-150.0,0.000144,2]
[419797311,1775385036558,-150.0,0.000144,2]
[419797312,1775385036567,-150.0,0.000144,2]
[419797313,1775385036578,-150.17540857,0.000144,2]
[419797314,1775385036588,-150.0,0.000144,2]
[419797315,1775385036598,-151.01430456,0.000144,2]
[419797316,1775385036607,-150.0,0.000144,2]
[419797317,1775385036616,-150.0,0.000144,2]
[419797318,1775385036627,-150.60277618,0.000144,2]
[419797319,1775385036637,-287.38140471,0.000144,2]
[419797320,1775385036648,-150.0,0.000144,2]
[419797321,1775385036657,-150.0,0.000144,2]
[419797322,1775385036667,-150.05716299,0.000144,2]
[419797323,1775385036676,-150.0,0.000144,2]
[419797324,1775385036686,-508.0,0.00014449,3]
[419797325,1775385036695,-150.0,0.0001447,2]
[419797326,1775385036704,-1326.87745236,0.00014475,2]
[419797327,1775385036713,-200.0,0.00014475,2]
[419797328,1775385036724,-200.0,0.00014475,2]
[419797329,1775385036733,-772.1,0.00014503,2]
[419797330,1775385036743,-393.0,0.0001451,4]
[419797331,1775385036752,-178.45956885,0.00014513,4]
[419797332,1775385036761,-150.0,0.00014539,2]
[419797333,1775385036770,-150.0,0.00014609,2]
[419797334,1775385036779,-200.0,0.0001462,2]
[419797335,1775385036788,-200.0,0.0001462,2]
[419797336,1775385036798,-150.0,0.00014678,2]
[419797337,1775385036807,-150.0,0.0001472,2]
[419797338,1775385036817,-150.0,0.00014748,2]
[419797339,1775385036826,-200.0,0.00014766,2]
[419797340,1775385036835,-200.0,0.00014766,2]
[419797341,1775385036844,-1500.0,0.00014795,2]
[419797342,1775385036853,-500.0,0.00014795,2]
[419797343,1775385036862,-1500.0,0.00014795,2]
[419797344,1775385036871,-891.53192442,0.00014795,2]
[419797345,1775385036880,-150.0,0.000148,2]
[419797346,1775385036890,-150.0,0.00014817,2]
[419797347,1775385036899,-200.0,0.00014831,2]
[419797348,1775385036908,-1842.03266331,0.00014831,2]
[419797349,1775385036918,-15609.82,0.00014853,2]
[419797350,1775385036927,-4212.59,0.00014853,2]
[419797351,1775385036936,-2396.23,0.00014853,2]
[419797352,1775385036946,-150.0,0.00014887,2]
[419797353,1775385036955,-200.0,0.00014914,2]
[419797354,1775385036964,-200.0,0.00014914,2]
[419797355,1775385036973,-150.0,0.00014933,2]
[419797356,1775385036983,-150.0,0.00014933,2]
[419797357,1775385036994,-150.0,0.00014933,2]
[419797358,1775385037003,-150.0,0.00014933,2]
[419797359,1775385037013,-150.0,0.00014957,2]
[419797360,1775385037022,-500.0,0.00015015,2]
[419797361,1775385037031,-2000.0,0.00015015,2]
[419797362,1775385037040,-150.0,0.00015026,2]
[419797363,1775385037051,-150.0,0.0001504,2]
[419797364,1775385037062,-1527.07242696,0.00015058,2]
[419797365,1775385037072,-5957.33,0.00015068,2]
[419797366,1775385037083,-900.0,0.00015068,2]
[419797367,1775385037093,-1694.0,0.00015068,5]
[419797368,1775385037104,-800.96674089,0.00015068,2]
[419797369,1775385037115,-150.0,0.00015096,2]
[419797370,1775385037125,-5888.0,0.00015158,2]
[419797371,1775385037134,-150.0,0.00015165,2]
[419797372,1775385037144,-1235.37,0.00015166,2]
[419797373,1775385037154,-3000.0,0.00015178,2]
[419797374,1775385037163,-1600.0,0.00015178,2]
[419797375,1775385037172,-9035.0,0.00015185,2]
[419797376,1775385037182,-924.0,0.00015189,2]
[419797377,1775385037191,-772.1,0.00015195,2]
[419797378,1775385037200,-150.0,0.000152,2]
[419797379,1775385037209,-10000.0,0.00015205,2]
[419797380,1775385037218,-350.0,0.00015232,2]
[419797381,1775385037228,-150.0,0.00015235,2]
[419797382,1775385037237,-350.0,0.00015255,2]
[419797383,1775385037247,-150.0,0.00015304,2]
[419797384,1775385037256,-307.0,0.00015314,5]
[419797385,1775385037266,-599.51032893,0.00015342,2]
[419797386,1775385037275,-1011.94070983,0.00015342,2]
[419797387,1775385037285,-150.0,0.0001536,2]
[419797388,1775385037294,-1582.0,0.0001536,2]
[419797389,1775385037304,-150.0,0.00015374,2]
[419797390,1775385037313,-200.0,0.00015379,2]
[419797391,1775385037323,-1910.18787185,0.00015379,2]
[419797392,1775385037332,-906.0,0.000154,2]
[419797393,1775385037341,-150.0,0.00015435,2]
[419797394,1775385037350,-1263.0,0.00015435,2]
[419797395,1775385037360,-1217.0,0.00015435,2]
[419797396,1775385037369,-925.0,0.00015435,2]
[419797397,1775385037378,-3522.0,0.00015435,2]
[419797398,1775385037387,-629.839,0.00015435,2]
[419797399,1775385037398,-150.0,0.00015443,2]
[419797400,1775385037407,-150.0,0.00015467,2]
[419797402,1775385037418,-150.0,0.00015467,2]
[419797404,1775385037427,-150.0,0.00015467,2]
[419797405,1775385037436,-150.0,0.00015467,2]
[419797407,1775385037445,-4000.0,0.00015507,2]
[419797408,1775385037455,-150.0,0.00015513,2]
[419797409,1775385037464,-408.0,0.00015562,2]
[419797410,1775385037473,-150.0,0.00015583,2]
[419797411,1775385037482,-350.0,0.0001559,2]
[419797412,1775385037491,-150.0,0.000156,2]
[419797413,1775385037500,-5888.0,0.00015604,2]
[419797414,1775385037509,-150.0,0.00015652,2]
[419797415,1775385037519,-7065.271,0.00015675,2]
[419797416,1775385037528,-321.004,0.00015675,2]
[419797417,1775385037537,-1467.64256455,0.0001568,2]
[419797418,1775385037546,-150.0,0.0001568,2]
[419797419,1775385037556,-5888.0,0.00015682,2]
[419797420,1775385037565,-10406.54,0.00015684,2]
[419797421,1775385037575,-1790.62,0.000157,2]
[419797422,1775385037584,-9473.63643207,0.000157,2]
[419797423,1775385037603,-350.0,0.00015708,2]
[419797424,1775385037614,-1752.27845808,0.00015713,2]
[419797425,1775385037624,-3634.19823712,0.00015713,2]
[419797426,1775385037634,-646.70734261,0.00015713,2]
[419797427,1775385037643,-150.0,0.00015722,2]
[419797428,1775385037652,-5888.0,0.00015752,2]
[419797429,1775385037662,-5957.33,0.00015753,2]
[419797430,1775385037671,-182.48327951,0.00015754,2]
[419797431,1775385037681,-5888.0,0.00015772,2]
[419797432,1775385037691,-197.56052506,0.00015778,2]
[419797433,1775385037702,-5888.0,0.00015784,2]
[419797434,1775385037713,-508.0,0.00015787,4]
[419797435,1775385037723,-150.0,0.00015791,2]
[419797436,1775385037732,-273.36195895,0.00015795,2]
[419797437,1775385037742,-1000.0,0.000158,5]
[419797438,1775385037752,-341.63277005,0.00015808,2]
[419797439,1775385037762,-2000.0,0.0001584,2]
[419797440,1775385037772,-2000.0,0.0001584,2]
[419797441,1775385037781,-2000.0,0.0001585,2]
[419797442,1775385037791,-150.0,0.00015861,2]
[419797443,1775385037800,-1189.0,0.00015864,2]
[419797444,1775385037810,-1074.0,0.00015864,2]
[419797445,1775385037820,-500.0,0.00015871,2]
[419797446,1775385037829,-500.0,0.00015872,2]
[419797447,1775385037838,-500.0,0.00015872,2]
[419797448,1775385037847,-500.0,0.00015872,2]
[419797449,1775385037857,-500.0,0.00015872,2]
[419797450,1775385037866,-200.0,0.00015872,2]
[419797451,1775385037876,-695.0,0.00015882,2]
[419797452,1775385037886,-234.3229734,0.00015892,2]
[419797453,1775385037896,-4000.0,0.00015895,2]
[419797454,1775385037906,-10000.0,0.000159,2]
[419797455,1775385037915,-1527.07242696,0.000159,2]
[419797456,1775385037925,-1880.93767002,0.000159,3]
[419797457,1775385037935,-2845.73107186,0.000159,2]
[419797458,1775385037944,-66134.55326491,0.000159,2]
[419797459,1775385037953,-1761.48637319,0.000159,2]
[419797460,1775385037963,-2088.0,0.000159,5]
[419797461,1775385037972,-1669.0,0.000159,5]
[419797462,1775385037982,-2000.0,0.00015901,2]
[419797463,1775385037991,-184.01671123,0.0001591,2]
[419797464,1775385038002,-695.0,0.00015927,2]
[419797465,1775385038011,-200.0,0.00015927,2]
[419797466,1775385038020,-1980.86482311,0.00015927,2]
[419797467,1775385038030,-150.0,0.0001593,2]
[419797469,1775385038039,-1000.0,0.00015935,2]
[419797471,1775385038049,-1337.87763051,0.00015956,2]
[419797473,1775385038058,-695.0,0.00015969,2]
[419797476,1775385038068,-11516.0,0.00015973,2]
[419797478,1775385038077,-500.0,0.00015973,2]
[419797480,1775385038087,-168.69935806,0.00015973,2]
[419797482,1775385038096,-607.20051974,0.00015973,2]
[419797484,1775385038110,-500.0,0.00015985,2]
[419797486,1775385038119,-500.0,0.00015986,2]
[419797488,1775385038129,-500.0,0.00015986,2]
[419797490,1775385038139,-500.0,0.00015987,2]
[419797492,1775385038148,-500.0,0.00015988,2]
[419797494,1775385038158,-500.0,0.00015989,2]
[419797496,1775385038167,-500.0,0.0001599,2]
[419797498,1775385038176,-500.0,0.00015991,2]
[419797500,1775385038186,-150.0,0.00015992,2]
[419797501,1775385038195,-382.9717124,0.00015993,2]
[419797502,1775385038205,-214.78070273,0.00015993,2]
[419797503,1775385038217,-239.8041,0.00015997,2]
[419797504,1775385038227,-666.0,0.00015999,2]
[419797505,1775385038237,-666.0,0.00015999,2]
[419797506,1775385038247,-666.0,0.00015999,2]
[419797507,1775385038256,-666.0,0.00015999,2]
[419797508,1775385038266,-1235.37,0.00015999,2]
[419797509,1775385038276,-1235.37,0.00015999,2]
[419797510,1775385038286,-1235.37,0.00015999,2]
[419797511,1775385038297,-1235.37,0.00015999,2]
[419797512,1775385038307,-1235.37,0.00015999,2]
[419797513,1775385038316,-1235.37,0.00015999,2]
[419797514,1775385038327,-1235.55,0.00015999,2]
[419797515,1775385038336,-1152.33695724,0.00015999,5]
[419797516,1775385038346,-301.03881414,0.00015999,5]
[419797517,1775385038356,-1525.0,0.00015999,5]
[419797518,1775385038365,-1525.0,0.00015999,5]
[419797519,1775385038376,-1525.0,0.00015999,5]
[419797520,1775385038386,-152.0,0.00015999,5]
[419797521,1775385038396,-1525.0,0.00015999,5]
[419797522,1775385038406,-152.0,0.00015999,5]
[419797523,1775385038416,-1525.0,0.00015999,5]
[419797524,1775385038427,-152.0,0.00015999,5]
[419797525,1775385038437,-1525.0,0.00015999,5]
[419797526,1775385038446,-152.0,0.00015999,5]
[419797527,1775385038455,-1525.0,0.00015999,5]
[419797528,1775385038465,-152.0,0.00015999,5]
[419797529,1775385038475,-1525.0,0.00015999,5]
[419797530,1775385038484,-152.0,0.00015999,5]
[419797531,1775385038494,-1525.0,0.00015999,5]
[419797532,1775385038504,-157.47547331,0.00015999,5]
[419797533,1775385038513,-152.0,0.00015999,5]
[419797534,1775385038523,-1525.0,0.00015999,5]
[419797535,1775385038533,-152.0,0.00015999,5]
[419797536,1775385038544,-1525.0,0.00015999,5]
[419797537,1775385038553,-1525.0,0.00015999,5]
[419797538,1775385038563,-152.0,0.00015999,5]
[419797539,1775385038573,-1525.0,0.00015999,5]
[419797540,1775385038583,-152.0,0.00015999,5]
[419797541,1775385038592,-1525.0,0.00015999,5]
[419797542,1775385038602,-152.0,0.00015999,5]
[419797543,1775385038612,-1525.0,0.00015999,5]
[419797544,1775385038627,-152.0,0.00015999,5]
[419797545,1775385038636,-1525.0,0.00015999,5]
[419797546,1775385038647,-1575.70159455,0.00015999,5]
[419797547,1775385038657,-152.0,0.00015999,5]
[419797548,1775385038666,-154.50523658,0.00015999,5]
[419797549,1775385038677,-1233.74,0.00015999,2]
[419797550,1775385038687,-1233.74,0.00015999,2]
[419797551,1775385038697,-1233.74,0.00015999,2]
[419797552,1775385038708,-1233.74,0.00015999,2]
[419797553,1775385038718,-1233.74,0.00015999,2]
[419797554,1775385038729,-1233.74,0.00015999,2]
[419797555,1775385038740,-1233.74,0.00015999,2]
[419797556,1775385038751,-1233.74,0.00015999,2]
[419797557,1775385038761,-1233.74,0.00015999,2]
[419797558,1775385038772,-1233.74,0.00015999,2]
[419797559,1775385038782,-1233.74,0.00015999,2]
[419797560,1775385038793,-1233.74,0.00015999,2]
[419797561,1775385038803,-1233.74,0.00015999,2]
[419797562,1775385038814,-1233.74,0.00015999,2]
[419797563,1775385038824,-1233.74,0.00015999,2]
[419797564,1775385039258,-1233.74,0.00015999,2]
[419797565,1775385039269,-1233.74,0.00015999,2]
[419797566,1775385039280,-1233.82978926,0.00015999,2]
[419797567,1775385039290,-500.0,0.00015999,2]
[419797568,1775385039299,-500.0,0.00015999,2]
[419797569,1775385039309,-500.0,0.00015999,2]
[419797570,1775385039319,-500.0,0.00015999,2]
[419797571,1775385039328,-500.0,0.00015999,2]
[419797572,1775385039338,-500.0,0.00015999,2]
[419797573,1775385039348,-500.0,0.00015999,2]
[419797574,1775385039359,-500.0,0.00015999,2]
[419797575,1775385039370,-500.0,0.00015999,2]
[419797576,1775385039380,-246.26921118,0.00015999,2]
[419797577,1775385039390,-500.0,0.00015999,2]
[419797578,1775385039400,-500.0,0.00015999,2]
[419797579,1775385039409,-500.0,0.00015999,2]
[419797580,1775385039419,-514.03397972,0.00015999,2]
[419797581,1775385039429,-500.0,0.00015999,2]
[419797582,1775385039438,-500.0,0.00015999,2]
[419797583,1775385039448,-500.0,0.00015999,2]
[419797584,1775385039457,-338.17,0.00015999,2]
[419797585,1775385039467,-214.21185671,0.00016,2]
[419797586,1775385039476,-245.08435541,0.00016,2]
[419797587,1775385039486,-238.91917798,0.00016,2]
[419797588,1775385039495,-151.90807937,0.00016,2]
[419797589,1775385039504,-233.2638427,0.00016,2]
[419797590,1775385039514,-151.22967101,0.00016,2]
[419797591,1775385039523,-154.07899059,0.00016,2]
[419797592,1775385039533,-151.75828689,0.00016,2]
[419797593,1775385039543,-229.30177921,0.00016,2]
[419797594,1775385039552,-20294.53210621,0.00016,2]
[419797595,1775385040640,-1726.42495711,0.00016,2]
[419797596,1775385040653,-34487.69004988,0.00016,2]
[419797597,1775385040665,-104424.21467249,0.00016,2]
[419797601,1775385042123,-500.0,8.596e-05,2]
[419797602,1775385042132,-244.85913321,8.596e-05,2]
[419797603,1775385042142,-500.0,8.596e-05,2]
[419797604,1775385042151,-560.03536094,8.596e-05,2]
[419797605,1775385042160,-500.0,8.596e-05,2]
[419797606,1775385042169,-500.0,8.596e-05,2]
[419797607,1775385042178,-150.66679273,8.596e-05,2]
[419797608,1775385042187,-500.0,8.596e-05,2]
[419797609,1775385042196,-500.0,8.596e-05,2]
[419797610,1775385042205,-500.0,8.596e-05,2]
[419797611,1775385042214,-500.0,8.596e-05,2]
[419797612,1775385042223,-500.0,8.596e-05,2]
[419797613,1775385042233,-500.0,8.596e-05,2]
[419797614,1775385042242,-500.0,8.596e-05,2]
[419797615,1775385042251,-500.0,8.596e-05,2]
[419797616,1775385042261,-500.0,8.596e-05,2]
[419797617,1775385042270,-500.0,8.596e-05,2]
[419797618,1775385042280,-500.0,8.596e-05,2]
[419797619,1775385042289,-500.0,8.596e-05,2]
[419797620,1775385042298,-500.0,8.596e-05,2]
[419797621,1775385042307,-500.0,8.596e-05,2]
[419797622,1775385042316,-500.0,8.596e-05,2]
[419797624,1775385042326,-500.0,8.596e-05,2]
[419797625,1775385042335,-500.0,8.596e-05,2]
[419797626,1775385042344,-500.0,8.596e-05,2]
[419797627,1775385042353,-500.0,8.596e-05,2]
[419797628,1775385042362,-325.34885852,0.00014269,2]
[419797629,1775385042371,-240074.18823168,0.00016,2]
[419797630,1775385042400,-1430462.3431512,0.00016,2]
[419797631,1775385042409,-45709.55949389,0.00016,2]
[419797632,1775385042418,-225668.96564262,0.00016,2]
[419797634,1775385042430,-522.6311138,0.00016,2]
[419797639,1775385042494,-766.39805676,0.00016,2]
[419797640,1775385042956,-166.66,0.00013824,2]
[419797641,1775385042966,-166.66,0.00014115,2]
[419797642,1775385042975,-166.66,0.00014406,2]
[419797643,1775385042985,-166.66,0.00014697,2]
[419797645,1775385042995,-166.66,0.00014988,2]
[419797646,1775385043005,-325.34885852,0.00015084,2]
[419797647,1775385043016,-166.66,0.00015279,2]
[419797648,1775385043026,-2678504.85957358,0.00016,2]
[419797649,1775385043036,-250.0,0.00016,2]
[419797650,1775385043046,-250.0,0.00016,2]
[419797651,1775385043056,-250.0,0.00016,2]
[419797652,1775385043067,-1000.0,0.00016,2]
[419797653,1775385043076,-1075.35,0.00016,2]
[419797654,1775385043086,-4729460.76477271,0.00016,2]
[419797655,1775385043718,-2050.97456538,9.57e-05,2]
[419797656,1775385043828,-449.02543462,9.57e-05,2]
[419797657,1775385043838,-682.91605418,0.00014693,2]
[419797658,1775385044019,-363.08394582,0.00014693,2]
[419797659,1775385044029,-276.75882942,0.00016,2]
[419797660,1775385045818,-325.34885852,0.000159,2]
[419797661,1775385045829,-5553.05692079,0.00016,2]
[419797671,1775385046353,-969.53214947,0.00016,2]
[419797731,1775385064739,500.0,8.596e-05,2]
[419797732,1775385064792,500.0,8.596e-05,2]
[419797733,1775385064904,500.0,8.596e-05,2]
[419797734,1775385065173,500.0,8.596e-05,2]
[419797735,1775385065471,500.0,8.596e-05,2]
[419797736,1775385065927,500.0,8.596e-05,2]
[419797737,1775385066279,500.0,8.596e-05,2]
[419797738,1775385066575,500.0,8.596e-05,2]
[419797739,1775385066891,500.0,8.596e-05,2]
[419797740,1775385072522,500.0,8.596e-05,2]
[419797741,1775385102607,-500.0,9.424e-05,2]
[419797742,1775385120087,9000.01,9.038e-05,2]
[419797743,1775385120111,10000.01,9.038e-05,2]
[419797744,1775385120136,4493.5579,9.038e-05,2]
[419797749,1775385244901,174.8,9.5e-05,3]
[419797772,1775386231854,-500.0,9.47e-05,2]
[419797773,1775386231865,-1988.6052116,9.542e-05,2]
[419797774,1775386231876,-508.61,9.542e-05,2]
[419797775,1775386231888,-655.300005,9.542e-05,2]
[419797776,1775386231957,-1847.4847834,9.542e-05,2]
[419797777,1775386231966,-250.0,9.614e-05,2]
[419797778,1775386231976,-250.0,0.00010067,2]
[419797779,1775386231986,-150.0,0.00010346,2]
[419797780,1775386231996,-242.11545322,0.00010346,2]
[419797781,1775386232006,-300.0,0.00010416,2]
[419797782,1775386232015,-1200.0,0.00010416,2]
[419797783,1775386232025,-250.0,0.00010417,2]
[419797784,1775386232034,-5000.0,0.00010417,2]
[419797785,1775386232043,-1482.0,0.00010925,2]
[419797786,1775386232052,-1200.0,0.00010976,2]
[419797787,1775386232062,-3754.4119,0.00010977,2]
[419797788,1775386232071,-80915.3797,0.00010977,2]
[419797789,1775386232080,-500.0,0.00010991,2]
[419797790,1775386232091,-9999.99,0.00011022,2]
[419797791,1775386232101,-999.99,0.00011022,2]
[419797792,1775386232110,-150.99,0.00011022,2]
[419797793,1775386232120,-52855.07,0.00011022,2]
[419797794,1775386232129,-500.0,0.00011046,2]
[419797795,1775386232139,-500.0,0.00011071,2]
[419797796,1775386232148,-500.0,0.00011071,2]
[419797797,1775386232158,-500.0,0.00011071,2]
[419797798,1775386232168,-500.0,0.00011071,2]
[419797799,1775386232177,-500.0,0.00011071,2]
[419797800,1775386232188,-500.0,0.00011071,2]
[419797801,1775386232198,-500.0,0.00011071,2]
[419797802,1775386232209,-500.0,0.00011071,2]
[419797803,1775386232218,-200.0,0.00011071,2]
[419797804,1775386232228,-500.0,0.00011071,2]
[419797805,1775386232238,-500.0,0.00011071,2]
[419797806,1775386232248,-500.0,0.00011071,2]
[419797807,1775386232258,-500.0,0.00011071,2]
[419797808,1775386232268,-500.0,0.00011071,2]
[419797809,1775386232277,-500.0,0.00011071,2]
[419797810,1775386232287,-500.0,0.00011071,2]
[419797811,1775386232296,-500.0,0.00011071,2]
[419797812,1775386232306,-500.0,0.00011071,2]
[419797813,1775386232314,-500.0,0.00011071,2]
[419797814,1775386232324,-500.0,0.00011071,2]
[419797815,1775386232334,-205.91491422,0.00011071,2]
[419797816,1775386232343,-500.0,0.00011071,2]
[419797817,1775386232353,-500.0,0.00011071,2]
[419797818,1775386232363,-500.0,0.00011071,2]
[419797819,1775386232372,-151.0,0.00011071,2]
[419797820,1775386232381,-151.0,0.00011071,2]
[419797821,1775386232391,-500.0,0.00011071,2]
[419797822,1775386232401,-151.0,0.00011071,2]
[419797823,1775386232410,-500.0,0.00011071,2]
[419797824,1775386232420,-151.0,0.00011071,2]
[419797825,1775386232429,-500.0,0.00011071,2]
[419797826,1775386232439,-151.0,0.00011071,2]
[419797827,1775386232448,-500.0,0.00011071,2]
[419797828,1775386232458,-151.0,0.00011071,2]
[419797829,1775386232468,-743.50770149,0.00011071,2]
[419797830,1775386232477,-500.0,0.00011071,2]
[419797831,1775386232487,-151.0,0.00011071,2]
[419797832,1775386232496,-151.0,0.00011071,2]
[419797833,1775386232506,-500.0,0.00011071,2]
[419797834,1775386232515,-151.0,0.00011071,2]
[419797835,1775386232525,-500.0,0.00011071,2]
[419797836,1775386232535,-151.0,0.00011071,2]
[419797837,1775386232544,-338.66029474,0.00011071,2]
[419797838,1775386232554,-151.0,0.00011071,2]
[419797839,1775386232563,-151.0,0.00011071,2]
[419797840,1775386232572,-151.0,0.00011071,2]
[419797841,1775386232582,-151.0,0.00011071,2]
[419797842,1775386232592,-151.0,0.00011071,2]
[419797843,1775386232601,-151.0,0.00011071,2]
[419797844,1775386232612,-151.0,0.00011071,2]
[419797845,1775386232621,-151.0,0.00011071,2]
[419797846,1775386232631,-151.0,0.00011071,2]
[419797847,1775386232641,-151.0,0.00011071,2]
[419797848,1775386232651,-151.0,0.00011071,2]
[419797849,1775386232660,-151.0,0.00011071,2]
[419797850,1775386232670,-151.0,0.00011071,2]
[419797851,1775386232680,-151.0,0.00011071,2]
[419797852,1775386232693,-151.0,0.00011071,2]
[419797853,1775386232703,-151.0,0.00011071,2]
[419797854,1775386232714,-151.0,0.00011071,2]
[419797855,1775386232723,-151.0,0.00011071,2]
[419797856,1775386232733,-151.0,0.00011071,2]
[419797857,1775386232743,-151.0,0.00011071,2]
[419797858,1775386232752,-151.0,0.00011071,2]
[419797859,1775386232762,-151.0,0.00011071,2]
[419797860,1775386232772,-151.0,0.00011071,2]
[419797861,1775386232781,-500.0,0.00011071,2]
[419797862,1775386232790,-500.0,0.00011071,2]
[419797863,1775386232800,-500.0,0.00011071,2]
[419797864,1775386232809,-500.0,0.00011071,2]
[419797865,1775386232819,-515.96135824,0.00011071,2]
[419797866,1775386232828,-170.0,0.00011071,2]
[419797867,1775386232837,-170.0,0.00011071,2]
[419797868,1775386232847,-170.0,0.00011071,2]
[419797869,1775386232856,-170.0,0.00011071,2]